bitfinex/quotes_SOLUSD_20250818
["timestamp","ask_amount","ask_price","bid_price","bid_amount"]
[1755509110671,98.42755239,180.74,180.73,0.03]
[1755509111053,98.42755239,180.74,180.65,0.03]
[1755509111054,30.15042935,180.73,180.65,0.03]
[1755509111249,7.52210689,180.67,180.65,0.03]
[1755509111574,47.44210689,180.67,180.65,0.03]
[1755509111873,46.69289146,180.67,180.66,0.7]
[1755509112169,8.07683036,180.69,180.66,0.7]
[1755509112374,39.92,180.69,180.66,8.22210689]
[1755509112675,39.92,180.69,180.67,0.67]
[1755509113760,39.92,180.69,180.68,0.67]
[1755509114551,8.07683036,180.73,180.68,8.19210689]
[1755509114869,39.92,180.72,180.69,0.67]
[1755509115075,39.92,180.72,180.66,5.56497803]
[1755509115076,0.55472347,180.71,180.7,0.67]
[1755509115374,8.07683036,180.71,180.69,0.67]
[1755509116673,10.9635286,180.71,180.66,13.08725931]
[1755509116848,7.52210689,180.69,180.66,0.03]
[1755509117062,47.44210689,180.68,180.66,0.03]
[1755509117373,8.07683036,180.67,180.66,0.03]
[1755509117952,13.61178358,180.67,180.66,0.03]
[1755509118153,8.07683036,180.67,180.66,0.03]
[1755509118766,13.61178358,180.67,180.66,0.03]
[1755509119174,8.07683036,180.67,180.66,0.03]
[1755509119369,39.92,180.68,180.66,8.21210689]
[1755509119595,39.92,180.68,180.67,0.66]
[1755509122256,3.44142171,180.71,180.67,13.71706011]
[1755509122458,39.92,180.7,180.68,8.18210689]
[1755509122699,2.88669824,180.71,180.69,8.18210689]
[1755509122887,2.88669824,180.71,180.7,0.66]
[1755509124464,2.88669824,180.71,180.7,8.18210689]
[1755509124671,0.06,180.75,180.7,8.18210689]
[1755509124889,0.06,180.75,180.74,7.52210689]
[1755509125394,0.06,180.75,180.74,0.66]
[1755509125700,7.58210689,180.75,180.71,0.66]
[1755509125884,0.55472347,180.74,180.71,0.66]
[1755509126075,8.13683036,180.75,180.71,0.66]
[1755509126687,7.52210689,180.73,180.69,5.53430324]
[1755509126886,8.07683036,180.73,180.69,5.53430324]
[1755509127126,7.52210689,180.72,180.68,31.53463244]
[1755509127588,1.24472347,180.73,180.68,5.53463244]
[1755509127807,8.07683036,180.73,180.69,0.66]
[1755509127985,47.99683036,180.74,180.69,8.18210689]
[1755509128186,39.92,180.74,180.7,0.66]
[1755509128390,39.92,180.74,180.69,7.52210689]
[1755509128704,39.92,180.74,180.71,0.66]
[1755509129073,47.44210689,180.74,180.71,0.66]
[1755509129296,39.92,180.74,180.71,0.66]
[1755509129799,47.44210689,180.74,180.71,0.66]
[1755509131113,39.92,180.74,180.71,0.66]
[1755509131407,47.44210689,180.74,180.71,6.1936546]
[1755509131990,47.44210689,180.74,180.71,0.66]
[1755509132306,3.66918041,180.73,180.7,5.5339714]
[1755509132808,3.66918041,180.73,180.7,6.1939714]
[1755509133110,48.13210689,180.74,180.7,6.1939714]
[1755509133303,3.67160948,180.73,180.7,6.1939714]
[1755509134308,48.13210689,180.74,180.7,6.1939714]
[1755509134514,3.67351472,180.73,180.7,6.1939714]
[1755509134692,48.13210689,180.74,180.7,6.1939714]
[1755509134894,3.67351542,180.73,180.7,6.1939714]
[1755509135087,48.13210689,180.74,180.7,6.1939714]
[1755509135396,3.67351472,180.73,180.71,0.66]
[1755509135597,47.44210689,180.74,180.71,0.66]
[1755509135803,3.67446301,180.73,180.69,8.18210689]
[1755509136002,48.13210689,180.74,180.69,7.52210689]
[1755509136183,3.67446034,180.73,180.7,0.66]
[1755509136389,48.13210689,180.74,180.7,0.66]
[1755509136589,3.67556433,180.73,180.7,6.19393944]
[1755509136789,8.21210689,180.73,180.7,5.53393944]
[1755509137010,1.24472347,180.72,180.66,7.582107]
[1755509137203,7.52210689,180.71,180.67,5.53495322]
[1755509137515,7.52210689,180.68,180.66,0.03]
[1755509137716,7.52210689,180.67,180.66,0.03]
[1755509138100,11.8879266,180.67,180.66,0.03]
[1755509138713,17.42287982,180.67,180.66,0.03]
[1755509139123,11.8879266,180.67,180.66,0.03]
[1755509140694,11.1979266,180.67,180.66,0.03]
[1755509140896,3.67581971,180.67,180.66,0.03]
[1755509141219,11.1979266,180.67,180.66,0.03]
[1755509141406,39.88,180.68,180.66,0.69]
[1755509142431,47.40210689,180.68,180.66,0.03]
[1755509142627,48.09210689,180.68,180.66,0.03]
[1755509142834,8.21210689,180.67,180.66,0.03]
[1755509143129,12.44571154,180.67,180.66,0.03]
[1755509144105,4.92360465,180.67,180.66,0.03]
[1755509144314,17.98066476,180.67,180.66,0.03]
[1755509144632,33.08688033,180.67,180.66,0.03]
[1755509145332,35.97510518,180.67,180.66,0.03]
[1755509155806,75.85510518,180.67,180.66,0.03]
[1755509156341,75.16510518,180.67,180.66,0.03]
[1755509156920,75.16510518,180.67,180.66,0.71]
[1755509156921,6.56710603,180.67,180.66,0.71]
[1755509157213,2.88822485,180.67,180.66,0.71]
[1755509158331,2.88822485,180.67,180.66,6.2452596]
[1755509158534,2.88822485,180.67,180.66,13.76736649]
[1755509158917,2.88822485,180.67,180.66,6.2452596]
[1755509159532,2.88822485,180.67,180.66,0.71]
[1755509160716,2.88822485,180.67,180.66,6.2452596]
[1755509161116,2.88822485,180.67,180.66,0.71]
[1755509163744,2.94822485,180.67,180.66,0.71]
[1755509164115,2.94822485,180.67,180.66,13.76736649]
[1755509164443,0.06,180.67,180.66,13.76736649]
[1755509165430,0.06,180.67,180.66,15.98521449]
[1755509166744,0.06,180.69,180.68,26.0]
[1755509166940,0.06,180.69,180.68,33.52210689]
[1755509167325,0.06,180.71,180.68,34.20210689]
[1755509167631,0.06,180.71,180.7,7.52210689]
[1755509168023,0.06,180.71,180.7,8.20210689]
[1755509169649,0.06,180.71,180.7,13.7361412]
[1755509170341,0.06,180.71,180.7,15.9534982]
[1755509170923,0.06,180.71,180.7,8.43139131]
[1755509171117,0.06,180.71,180.7,15.9534982]
[1755509171732,0.06,180.71,180.7,13.0561412]
[1755509171922,0.06,180.71,180.7,5.53403431]
[1755509172119,0.06,180.71,180.7,13.0561412]
[1755509172444,0.06,180.71,180.68,28.897725]
[1755509172445,0.06,180.71,180.69,5.53427735]
[1755509172643,0.73,180.71,180.68,7.52210689]
[1755509173022,0.73,180.71,180.68,13.05670872]
[1755509173348,0.06,180.71,180.68,13.05670872]
[1755509173529,0.06,180.71,180.68,13.73670872]
[1755509173727,0.06,180.71,180.69,7.52210689]
[1755509174747,0.06,180.71,180.69,13.05639466]
[1755509176520,0.74,180.71,180.68,5.53454401]
[1755509177128,0.68,180.7,180.68,5.53454401]
[1755509177336,0.68,180.69,180.68,5.53454401]
[1755509177650,0.06,180.71,180.68,5.53454401]
[1755509177651,0.68,180.7,180.68,5.53454401]
[1755509177855,0.06,180.71,180.68,5.53454401]
[1755509178151,0.74,180.71,180.68,5.53454401]
[1755509178741,0.74,180.71,180.67,5.53495322]
[1755509179046,0.74,180.71,180.67,13.72706011]
[1755509179956,0.74,180.71,180.67,6.20495322]
[1755509180156,0.74,180.71,180.67,13.72706011]
[1755509180653,0.68,180.7,180.67,5.53495322]
[1755509180838,0.68,180.7,180.66,13.08735136]
[1755509181247,0.68,180.69,180.66,0.03]
[1755509181435,8.20210689,180.69,180.66,0.03]
[1755509181766,7.52210689,180.69,180.66,0.03]
[1755509182054,7.52210689,180.67,180.66,0.03]
[1755509182461,8.20210689,180.67,180.66,0.03]
[1755509183351,23.30832246,180.67,180.66,0.03]
[1755509183664,26.9798354,180.67,180.66,0.03]
[1755509184259,32.51478862,180.67,180.66,0.03]
[1755509184756,24.99268173,180.67,180.66,0.03]
[1755509184954,32.51478862,180.67,180.66,0.03]
[1755509186567,17.40857305,180.67,180.66,0.03]
[1755509186775,32.51478862,180.67,180.66,0.03]
[1755509186934,33.06951209,180.67,180.66,0.03]
[1755509187961,72.33478862,180.67,180.66,0.03]
[1755509188260,75.22254074,180.67,180.66,0.03]
[1755509197264,3.44247559,180.67,180.66,0.7]
[1755509197561,42.68775212,180.67,180.66,0.7]
[1755509197953,43.24247559,180.67,180.66,0.7]
[1755509198343,50.76458248,180.67,180.66,0.03]
[1755509198763,2.88775212,180.67,180.66,0.7]
[1755509198978,39.86,180.69,180.66,8.22210689]
[1755509199265,39.86,180.69,180.67,8.19210689]
[1755509199472,0.06,180.69,180.68,8.19210689]
[1755509200384,0.06,180.69,180.68,13.72675377]
[1755509203853,0.06,180.69,180.68,6.20464688]
[1755509204455,0.06,180.69,180.66,0.7]
[1755509204658,8.13683036,180.69,180.66,0.03]
[1755509204847,8.20210689,180.68,180.66,0.03]
[1755509205048,7.52210689,180.68,180.66,0.03]
[1755509205256,8.20210689,180.68,180.66,0.03]
[1755509205556,0.68,180.67,180.66,0.03]
[1755509205772,47.98210689,180.67,180.66,0.03]
[1755509206150,63.12832246,180.67,180.66,0.03]
[1755509206854,72.33790602,180.67,180.66,0.03]
[1755509208055,72.89262949,180.67,180.66,0.03]
[1755509209752,15.10621557,180.66,180.65,0.03]
[1755509209952,27.0229528,180.66,180.65,0.03]
[1755509210752,32.5582124,180.66,180.65,0.03]
[1755509212574,25.03610551,180.66,180.65,0.03]
[1755509212756,72.3382124,180.66,180.65,0.03]
[1755509215282,31.8382124,180.66,180.65,0.03]
[1755509215461,71.6182124,180.66,180.65,0.03]
[1755509216365,66.0829528,180.66,180.65,0.03]
[1755509216565,62.40832246,180.66,180.65,0.03]
[1755509217284,68.66358206,180.66,180.65,0.03]
[1755509217493,72.33946108,180.66,180.65,0.03]
[1755509217866,71.61946108,180.66,180.65,0.03]
[1755509219484,72.33946108,180.66,180.65,0.03]
[1755509222581,75.22771659,180.66,180.65,0.03]
[1755509223083,51.85939413,180.66,180.65,0.03]
[1755509223392,75.20771659,180.66,180.65,0.03]
[1755509225689,53.84624142,180.66,180.65,0.72]
[1755509225863,46.32413453,180.66,180.65,0.72]
[1755509226058,53.84624142,180.66,180.65,0.72]
[1755509226287,46.32413453,180.66,180.65,0.72]
[1755509226471,42.64825551,180.66,180.65,0.72]
[1755509226668,43.20297898,180.66,180.65,0.72]
[1755509227080,42.64825551,180.66,180.65,6.25556601]
[1755509227278,2.88825551,180.66,180.65,6.25556601]
[1755509227473,2.88825551,180.66,180.65,13.7776729]
[1755509228272,39.76,180.68,180.65,13.7776729]
[1755509228478,2.94687209,180.69,180.66,8.21210689]
[1755509228678,2.94687209,180.69,180.68,5.53464688]
[1755509228901,2.94687209,180.69,180.68,6.22464688]
[1755509229802,0.06,180.69,180.68,13.74675377]
[1755509231280,0.06,180.69,180.68,6.22464688]
[1755509231494,0.06,180.69,180.68,13.74675377]
[1755509232174,0.06,180.69,180.68,6.22464688]
[1755509232381,0.06,180.69,180.68,13.74675377]
[1755509233314,0.06,180.69,180.68,6.22464688]
[1755509233502,0.06,180.69,180.68,0.69]
[1755509234082,0.06,180.69,180.66,6.22516665]
[1755509234308,0.78,180.69,180.65,0.03]
[1755509234619,7.58210689,180.69,180.66,0.69]
[1755509235392,7.52210689,180.68,180.65,5.56553979]
[1755509235615,7.52210689,180.68,180.65,0.03]
[1755509235616,7.52210689,180.66,180.65,0.03]
[1755509235787,8.07683036,180.66,180.65,0.03]
[1755509238089,8.76683036,180.66,180.65,0.03]
[1755509238291,14.30208996,180.66,180.65,0.03]
[1755509238508,17.97967511,180.66,180.65,0.03]
[1755509238716,33.08589068,180.66,180.65,0.03]
[1755509240192,11.75441551,180.66,180.65,0.03]
[1755509240701,17.28967511,180.66,180.65,0.03]
[1755509240904,72.80589068,180.66,180.65,0.03]
[1755509242815,15.10621557,180.65,180.64,0.03]
[1755509243017,7.52210689,180.64,180.63,0.03]
[1755509243206,52.16441551,180.64,180.63,0.03]
[1755509243402,52.16441551,180.64,180.62,0.03]
[1755509243403,15.10621557,180.63,180.62,0.03]
[1755509243620,26.99590761,180.63,180.62,0.03]
[1755509244226,26.99590761,180.63,180.61,0.03]
[1755509244429,52.16441551,180.62,180.61,0.03]
[1755509244730,72.80711651,180.62,180.61,0.03]
[1755509245394,65.28500962,180.62,180.61,0.03]
[1755509245593,72.80711651,180.62,180.61,0.03]
[1755509247202,72.80711651,180.62,180.56,0.03]
[1755509247420,37.88969204,180.61,180.56,0.03]
[1755509248120,44.78380072,180.61,180.57,0.71]
[1755509248498,52.30590761,180.61,180.57,0.71]
[1755509248720,11.19969204,180.61,180.6,0.74]
[1755509249020,50.91969204,180.61,180.6,0.74]
[1755509249201,56.45648402,180.61,180.6,0.03]
[1755509250224,59.34525879,180.61,180.6,0.03]
[1755509250411,19.62525879,180.61,180.6,0.03]
[1755509250610,59.34525879,180.61,180.6,0.03]
[1755509251928,53.80846681,180.61,180.6,0.03]
[1755509252121,59.34525879,180.61,180.6,0.03]
[1755509252424,11.16391188,180.61,180.56,0.03]
[1755509252644,40.27472347,180.6,180.56,13.09037264]
[1755509252926,2.88877477,180.61,180.56,13.09037264]
[1755509253126,42.60877477,180.61,180.56,13.09037264]
[1755509253346,2.88877477,180.61,180.59,7.52210689]
[1755509253505,2.88877477,180.61,180.57,7.52210689]
[1755509253705,10.41088166,180.61,180.56,13.09037264]
[1755509254006,50.13088166,180.61,180.56,13.09037264]
[1755509254209,7.52210689,180.59,180.56,0.74]
[1755509254402,7.52210689,180.57,180.56,0.03]
[1755509254933,11.18845494,180.57,180.56,0.03]
[1755509255139,7.52210689,180.57,180.56,0.03]
[1755509255708,11.18654193,180.57,180.56,0.03]
[1755509256319,11.87654193,180.57,180.56,0.03]
[1755509256518,17.41456042,180.57,180.56,0.03]
[1755509256836,32.52077599,180.57,180.56,0.03]
[1755509258438,0.55472347,180.58,180.56,0.03]
[1755509258638,47.24210689,180.57,180.56,0.03]
[1755509258946,66.69956025,180.57,180.56,0.03]
[1755509260315,3.66123779,180.57,180.56,0.03]
[1755509260524,0.55472347,180.59,180.56,0.74]
[1755509260730,39.72,180.58,180.56,0.74]
[1755509261232,47.24210689,180.58,180.56,0.03]
[1755509261440,8.07683036,180.57,180.56,0.03]
[1755509261607,0.55472347,180.57,180.56,0.03]
[1755509261811,47.79683036,180.58,180.56,0.03]
[1755509262032,7.52210689,180.57,180.56,0.03]
[1755509262205,8.21210689,180.57,180.56,0.03]
[1755509262604,7.52210689,180.57,180.56,0.03]
[1755509263037,40.27472347,180.58,180.56,0.03]
[1755509263218,7.52210689,180.57,180.56,0.03]
[1755509264018,8.21210689,180.57,180.56,0.03]
[1755509264634,0.55472347,180.58,180.56,0.74]
[1755509264858,0.55472347,180.6,180.57,0.71]
[1755509265013,39.72,180.59,180.57,0.71]
[1755509265213,0.55472347,180.58,180.56,0.03]
[1755509265524,39.72,180.57,180.56,0.03]
[1755509265948,39.72,180.57,180.56,0.74]
[1755509266243,39.72,180.57,180.56,0.03]
[1755509266751,39.72,180.57,180.56,0.7]
[1755509267508,8.07683036,180.6,180.56,0.03]
[1755509267709,39.72,180.59,180.56,0.03]
[1755509267911,0.55472347,180.58,180.56,0.03]
[1755509268146,39.72,180.57,180.56,0.03]
[1755509268315,39.72,180.57,180.56,7.55210689]
[1755509268516,39.72,180.57,180.56,13.7604321]
[1755509269352,39.72,180.57,180.56,6.23832521]
[1755509269913,47.94210689,180.57,180.56,0.03]
[1755509270114,40.97472347,180.57,180.56,0.03]
[1755509270415,40.27472347,180.57,180.56,0.03]
[1755509270617,43.86405405,180.57,180.56,0.03]
[1755509270836,72.030395,180.57,180.56,0.03]
[1755509271023,75.68508491,180.57,180.56,0.03]
[1755509273028,35.96508491,180.57,180.56,0.03]
[1755509273230,75.66508491,180.57,180.56,0.03]
[1755509278028,15.10621557,180.56,180.55,0.06]
[1755509278251,61.6213235,180.56,180.55,0.06]
[1755509278544,61.62411218,180.56,180.55,0.06]
[1755509278726,62.17883565,180.56,180.55,0.06]
[1755509279052,36.17883565,180.56,180.55,0.06]
[1755509279251,41.72271916,180.56,180.55,0.06]
[1755509280254,37.1474089,180.56,180.55,0.06]
[1755509280431,37.1474089,180.56,180.54,1e-08]
[1755509280636,15.10621557,180.54,180.52,1e-08]
[1755509280942,70.62908369,180.53,180.52,1e-08]
[1755509281142,71.32908369,180.53,180.52,1e-08]
[1755509281347,76.86832924,180.53,180.52,1e-08]
[1755509281528,69.34622235,180.53,180.52,1e-08]
[1755509281857,76.86832924,180.53,180.52,1e-08]
[1755509282232,82.97372122,180.53,180.52,1e-08]
[1755509282852,82.97714522,180.53,180.52,1e-08]
[1755509283020,76.87175324,180.53,180.52,1e-08]
[1755509283434,41.10621557,180.51,180.43,0.67]
[1755509283648,102.73623881,180.51,180.43,0.67]
[1755509283854,114.07085084,180.51,180.43,0.67]
[1755509284040,113.51612737,180.51,180.43,0.67]
[1755509284361,113.51612737,180.51,180.45,0.67]
[1755509284728,118.35598665,180.51,180.43,7.52210689]
[1755509284927,64.80279377,180.51,180.46,0.67]
[1755509285123,81.27046927,180.51,180.45,13.06372399]
[1755509285329,14.85250596,180.51,180.5,0.7]
[1755509285640,54.57250596,180.51,180.5,0.7]
[1755509285841,54.57250596,180.51,180.5,8.22210689]
[1755509286555,54.57250596,180.51,180.5,0.7]
[1755509286938,62.09461285,180.51,180.5,0.03]
[1755509287140,77.20082842,180.51,180.5,0.03]
[1755509287448,74.25822703,180.51,180.5,0.03]
[1755509287626,81.78033392,180.51,180.5,0.03]
[1755509288155,77.20082842,180.51,180.5,0.03]
[1755509288529,37.48082842,180.51,180.5,0.03]
[1755509288730,77.22082842,180.51,180.5,0.03]
[1755509288926,77.20082842,180.51,180.5,0.03]
[1755509289457,82.7406877,180.51,180.5,0.03]
[1755509289660,87.3201932,180.51,180.5,0.03]
[1755509290044,81.78033392,180.51,180.5,0.03]
[1755509290350,54.57250596,180.51,180.5,0.7]
[1755509290750,54.57250596,180.51,180.5,0.03]
[1755509290951,57.46277852,180.51,180.5,0.03]
[1755509291255,57.46277852,180.51,180.5,0.7]
[1755509291430,17.74277852,180.51,180.5,0.7]
[1755509291628,56.90805505,180.51,180.5,8.22210689]
[1755509292058,56.91080549,180.51,180.5,8.22210689]
[1755509292279,13.52488459,180.51,180.5,8.22210689]
[1755509292460,53.24488459,180.51,180.5,0.7]
[1755509292661,56.91091111,180.51,180.5,0.7]
[1755509292852,53.24488459,180.51,180.5,0.7]
[1755509293045,53.24488459,180.51,180.5,8.22210689]
[1755509293250,53.24488459,180.51,180.5,13.76227309]
[1755509293564,53.24488459,180.51,180.5,6.2401662]
[1755509293742,53.24488459,180.51,180.5,13.76227309]
[1755509294358,53.24488459,180.51,180.5,6.2401662]
[1755509294666,53.24488459,180.51,180.5,5.5701662]
[1755509294962,53.24488459,180.51,180.5,13.76227309]
[1755509295345,53.24488459,180.51,180.5,0.7]
[1755509295549,53.24488459,180.51,180.5,0.03]
[1755509297180,70.63253758,180.51,180.5,0.03]
[1755509297675,71.18726105,180.51,180.5,0.03]
[1755509298481,86.29347662,180.51,180.5,0.03]
[1755509300155,78.77136973,180.51,180.5,0.03]
[1755509300566,86.29347662,180.51,180.5,0.03]
[1755509302157,85.63347662,180.51,180.5,0.03]
[1755509302467,46.57347662,180.51,180.5,0.03]
[1755509302662,57.46529488,180.51,180.5,0.03]
[1755509303671,63.00515416,180.51,180.5,0.03]
[1755509303967,57.46529488,180.51,180.5,0.03]
[1755509304143,63.66515416,180.51,180.5,0.03]
[1755509304853,63.00515416,180.51,180.5,0.03]
[1755509305249,86.29347662,180.51,180.5,0.03]
[1755509306274,17.74529488,180.51,180.5,0.03]
[1755509306572,56.91057141,180.51,180.5,8.24210689]
[1755509306764,53.24488459,180.51,180.5,8.24210689]
[1755509306955,53.24488459,180.51,180.5,7.55210689]
[1755509307283,53.24488459,180.51,180.5,8.24210689]
[1755509307768,13.52488459,180.51,180.5,8.24210689]
[1755509307969,53.24488459,180.51,180.5,13.78227309]
[1755509308768,53.24488459,180.51,180.5,6.2601662]
[1755509308969,65.09715399,180.51,180.5,0.03]
[1755509309175,56.9150471,180.51,180.5,0.03]
[1755509309351,57.60977057,180.51,180.5,0.03]
[1755509309552,57.60977057,180.51,180.5,7.55210689]
[1755509309784,57.0550471,180.51,180.5,7.55210689]
[1755509309968,57.0550471,180.51,180.5,8.24210689]
[1755509310168,17.1950471,180.51,180.5,0.03]
[1755509310353,57.0750471,180.51,180.5,0.03]
[1755509312758,17.1950471,180.51,180.5,0.03]
[1755509312972,17.1950471,180.51,180.5,8.24210689]
[1755509313163,50.49461203,180.51,180.5,8.24210689]
[1755509313753,50.49461203,180.51,180.5,0.03]
[1755509313754,54.17279083,180.51,180.5,0.03]
[1755509314886,54.17279083,180.51,180.5,13.78227309]
[1755509317206,54.17279083,180.51,180.5,0.03]
[1755509317865,54.83279083,180.51,180.5,0.03]
[1755509319564,54.83750745,180.51,180.5,0.03]
[1755509319754,60.37736673,180.51,180.5,0.03]
[1755509319955,67.89947362,180.51,180.5,0.03]
[1755509320176,75.4835823,180.51,180.5,0.03]
[1755509320380,87.60930847,180.51,180.5,0.03]
[1755509320564,91.70047477,180.51,180.5,0.03]
[1755509320963,84.17836788,180.51,180.5,0.03]
[1755509321278,91.70047477,180.51,180.5,0.03]
[1755509321968,84.17836788,180.51,180.5,0.03]
[1755509322405,91.70047477,180.51,180.5,0.03]
[1755509322713,15.10621557,180.5,180.46,0.06]
[1755509322986,44.21761889,180.49,180.46,0.06]
[1755509323173,3.68289542,180.48,180.46,0.06]
[1755509323375,44.75761889,180.47,180.46,0.06]
[1755509323691,45.41761889,180.47,180.46,0.06]
[1755509323871,52.93972578,180.47,180.46,0.06]
[1755509324269,63.08357278,180.47,180.46,0.06]
[1755509324467,55.56146589,180.47,180.46,0.06]
[1755509324788,59.65103919,180.47,180.46,0.06]
[1755509324970,62.57038624,180.47,180.46,0.06]
[1755509325687,55.04827935,180.47,180.46,0.06]
[1755509325988,63.08045352,180.47,180.46,0.06]
[1755509326223,55.55834663,180.47,180.46,0.06]
[1755509326494,41.10621557,180.45,180.44,0.06]
[1755509326792,15.10621557,180.43,180.33,11.08914356]
[1755509327094,44.98289542,180.42,180.39,7.52210689]
[1755509327272,0.55472347,180.41,180.37,0.7]
[1755509327467,3.67680316,180.4,180.38,8.22210689]
[1755509327666,5.15275421,180.46,180.39,8.22210689]
[1755509327895,45.09725368,180.45,180.4,0.7]
[1755509328098,41.42,180.44,180.4,0.7]
[1755509328388,15.23264277,180.51,180.44,5.54200842]
[1755509328570,45.21899653,180.5,180.48,7.52210689]
[1755509328775,3.67899653,180.49,180.48,0.7]
[1755509328962,4.37899653,180.49,180.42,5.542319]
[1755509329168,7.52210689,180.47,180.44,0.06]
[1755509329367,45.79372,180.46,180.44,0.06]
[1755509329569,3.67899653,180.45,180.44,0.06]
[1755509330278,3.67899653,180.45,180.44,8.28210689]
[1755509330595,3.67899653,180.45,180.44,13.82411531]
[1755509330783,5.29803074,180.5,180.44,13.82411531]
[1755509330784,0.55472347,180.5,180.44,13.82411531]
[1755509330984,45.29901994,180.49,180.48,7.52210689]
[1755509331366,45.29901994,180.49,180.47,7.52210689]
[1755509331584,3.67901994,180.48,180.46,7.52210689]
[1755509331772,41.62,180.49,180.45,7.52210689]
[1755509332095,41.62,180.47,180.44,13.12411289]
[1755509332397,4.93384769,180.48,180.45,7.52210689]
[1755509332398,41.62,180.46,180.45,7.52210689]
[1755509332591,41.62,180.46,180.45,13.06380819]
[1755509332807,41.62,180.46,180.44,0.06]
[1755509333093,41.68,180.46,180.45,7.52210689]
[1755509333295,41.68,180.46,180.44,0.06]
[1755509333880,44.57094768,180.46,180.44,0.06]
[1755509334589,0.55472347,180.45,180.44,0.06]
[1755509334993,4.23346738,180.45,180.44,0.06]
[1755509336009,4.93346738,180.45,180.44,0.06]
[1755509337908,4.23346738,180.45,180.44,0.06]
[1755509339194,45.31874391,180.45,180.44,0.06]
[1755509340697,3.44567115,180.46,180.44,8.28210689]
[1755509340698,2.89094768,180.46,180.44,8.28210689]
[1755509340909,45.3199661,180.49,180.45,8.22210689]
[1755509341209,10.66461203,180.51,180.48,7.52210689]
[1755509341385,10.66461203,180.51,180.5,7.52210689]
[1755509341582,3.7107368,180.51,180.5,8.22210689]
[1755509341787,0.03,180.51,180.5,8.22210689]
[1755509342417,0.03,180.51,180.5,26.7]
[1755509342721,0.03,180.51,180.5,6.2401662]
[1755509343018,0.03,180.51,180.5,13.76227309]
[1755509343891,0.03,180.51,180.5,32.2401662]
[1755509344089,0.03,180.51,180.5,39.76227309]
[1755509344289,0.03,180.52,180.5,39.76227309]
[1755509344524,0.03,180.54,180.53,41.10621557]
[1755509344722,0.03,180.57,180.54,15.10621557]
[1755509344899,0.03,180.57,180.55,7.52210689]
[1755509345091,0.03,180.57,180.55,8.22210689]
[1755509345287,1e-08,180.57,180.56,49.32832246]
[1755509345590,1e-08,180.58,180.57,15.10621557]
[1755509345909,0.06,180.61,180.6,26.0]
[1755509346128,1e-08,180.62,180.61,15.10621557]
[1755509346284,1e-08,180.62,180.61,23.32832246]
[1755509346488,0.03,180.64,180.63,26.0]
[1755509346694,0.03,180.64,180.63,54.16450138]
[1755509346892,0.03,180.64,180.63,54.86450138]
[1755509347790,0.06,180.67,180.66,26.0]
[1755509348221,0.06,180.67,180.66,33.52210689]
[1755509348834,0.06,180.67,180.6,7.52210689]
[1755509348835,0.76,180.67,180.58,0.7]
[1755509349045,8.07683036,180.66,180.55,0.7]
[1755509349340,0.7,180.65,180.6,7.52210689]
[1755509349514,0.55472347,180.64,180.58,26.0]
[1755509349847,1.25472347,180.64,180.6,7.52210689]
[1755509350003,0.7,180.63,180.6,7.52210689]
[1755509351237,0.7,180.62,180.59,5.53713689]
[1755509351401,8.07683036,180.65,180.6,7.52210689]
[1755509351402,0.55472347,180.65,180.6,7.52210689]
[1755509351601,0.55472347,180.66,180.62,7.52210689]
[1755509351808,0.7,180.65,180.62,7.52210689]
[1755509352006,8.77683036,180.64,180.58,5.53771181]
[1755509352309,11.71899574,180.62,180.55,5.53863195]
[1755509352643,0.55472347,180.61,180.55,31.53863195]
[1755509352819,1.25472347,180.62,180.58,11.71899574]
[1755509353199,0.55472347,180.62,180.6,11.71899574]
[1755509353402,0.76,180.67,180.61,11.71899574]
[1755509353638,0.76,180.67,180.66,11.71899574]